[Event "Titled Tuesday Blitz July 6 2021"]
[White "Chernomordik, Pavel"]
[Black "Morris-Suzuki, Sophie"]
[WhiteFideId "2804530"]
[BlackFideId "30922615"]
[WhiteElo "2273"]
[BlackElo "2355"]
[Result "0-1"]
[Round "10"]
[TimeControl "180+1"]
[Date "2021.07.06"]
[WhiteClock "0:00:05"]
[BlackClock "0:00:10"]

1. e4 {[%clk 0:03:00]}  c5 {[%clk 0:03:00]} 2. Nc3 {[%clk 0:03:00]}  e6 {[%clk 0:02:53]} 3. f4 {[%clk 0:02:59]}  d6 {[%clk 0:02:52]} 4. Nf3 {[%clk 0:02:57]}  a6 {[%clk 0:02:53]} 5. g3 {[%clk 0:02:54]}  b5 {[%clk 0:02:53]} 6. Qe2 {[%clk 0:02:54]}  Bb7 {[%clk 0:02:53]} 7. Bg2 {[%clk 0:02:53]}  Be7 {[%clk 0:02:53]} 8. O-O {[%clk 0:02:50]}  Nf6 {[%clk 0:02:53]} 9. d3 {[%clk 0:02:43]}  O-O {[%clk 0:02:50]} 10. h3 {[%clk 0:02:42]}  Nc6 {[%clk 0:02:42]} 11. Be3 {[%clk 0:02:34]}  d5 {[%clk 0:02:38]} 12. Bf2 {[%clk 0:02:29]}  d4 {[%clk 0:02:13]} 13. Nd1 {[%clk 0:02:27]}  Nd7 {[%clk 0:02:07]} 14. e5 {[%clk 0:02:23]}  Nb6 {[%clk 0:02:00]} 15. g4 {[%clk 0:02:18]}  c4 {[%clk 0:01:11]} 16. f5 {[%clk 0:02:11]}  cxd3 {[%clk 0:01:11]} 17. cxd3 {[%clk 0:02:08]}  Nd5 {[%clk 0:01:05]} 18. Bg3 {[%clk 0:01:56]}  f6 {[%clk 0:00:43]} 19. exf6 {[%clk 0:01:47]}  Bxf6 {[%clk 0:00:37]} 20. Qxe6+ {[%clk 0:01:25]}  Kh8 {[%clk 0:00:37]} 21. Qe2 {[%clk 0:01:18]}  Re8 {[%clk 0:00:37]} 22. Qd2 {[%clk 0:01:16]}  Ne3 {[%clk 0:00:37]} 23. Nxe3 {[%clk 0:01:11]}  dxe3 {[%clk 0:00:37]} 24. Qe2 {[%clk 0:01:10]}  Nd4 {[%clk 0:00:30]} 25. Nxd4 {[%clk 0:01:09]}  Bxg2 {[%clk 0:00:30]} 26. Kxg2 {[%clk 0:01:07]}  Qxd4 {[%clk 0:00:28]} 27. h4 {[%clk 0:00:51]}  Qxb2 {[%clk 0:00:22]} 28. Kf3 {[%clk 0:00:43]}  Qxe2+ {[%clk 0:00:20]} 29. Kxe2 {[%clk 0:00:40]}  Bxa1 {[%clk 0:00:20]} 30. Rxa1 {[%clk 0:00:39]}  Rac8 {[%clk 0:00:21]} 31. d4 {[%clk 0:00:35]}  Rc2+ {[%clk 0:00:21]} 32. Kf3 {[%clk 0:00:34]}  e2 {[%clk 0:00:19]} 33. Re1 {[%clk 0:00:33]}  Rxa2 {[%clk 0:00:19]} 34. Be5 {[%clk 0:00:31]}  b4 {[%clk 0:00:15]} 35. Kf2 {[%clk 0:00:27]}  b3 {[%clk 0:00:15]} 36. Rb1 {[%clk 0:00:27]}  Rd2 {[%clk 0:00:07]} 37. Ke1 {[%clk 0:00:18]}  Rd1+ {[%clk 0:00:07]} 38. Rxd1 {[%clk 0:00:17]}  exd1=Q+ {[%clk 0:00:08]} 39. Kxd1 {[%clk 0:00:17]}  a5 {[%clk 0:00:08]} 40. Kc1 {[%clk 0:00:16]}  a4 {[%clk 0:00:07]} 41. Kb2 {[%clk 0:00:16]}  Rc8 {[%clk 0:00:08]} 42. d5 {[%clk 0:00:14]}  Rc2+ {[%clk 0:00:07]} 43. Ka3 {[%clk 0:00:14]}  Ra2+ {[%clk 0:00:07]} 44. Kb4 {[%clk 0:00:12]}  b2 {[%clk 0:00:07]} 45. Bxb2 {[%clk 0:00:11]}  Rxb2+ {[%clk 0:00:08]} 46. Kxa4 {[%clk 0:00:12]}  Rd2 {[%clk 0:00:08]} 47. Kb4 {[%clk 0:00:10]}  Rxd5 {[%clk 0:00:07]} 48. Kc4 {[%clk 0:00:10]}  Re5 {[%clk 0:00:07]} 49. Kd4 {[%clk 0:00:10]}  Re1 {[%clk 0:00:08]} 50. g5 {[%clk 0:00:09]}  Kg8 {[%clk 0:00:08]} 51. Kd5 {[%clk 0:00:09]}  Kf7 {[%clk 0:00:09]} 52. h5 {[%clk 0:00:08]}  Rg1 {[%clk 0:00:08]} 53. g6+ {[%clk 0:00:07]}  hxg6 {[%clk 0:00:08]} 54. hxg6+ {[%clk 0:00:05]}  Kf6 {[%clk 0:00:09]} 55. Ke4 {[%clk 0:00:06]}  Re1+ {[%clk 0:00:09]} 56. Kf3 {[%clk 0:00:05]}  Rf1+ {[%clk 0:00:09]} 57. Kg4 {[%clk 0:00:05]}  Rxf5 {[%clk 0:00:10]} 0-1


[Site "https://www.chess.com"]

[Event "Titled Tuesday Blitz July 6 2021"]
[White "Ciorgovean, Iustin"]
[Black "Arutinian, David"]
[WhiteFideId "1242911"]
[BlackFideId "13601741"]
[WhiteElo "2075"]
[BlackElo "2525"]
[Result "0-1"]
[Round "10"]
[TimeControl "180+1"]
[Date "2021.07.06"]
[WhiteClock "0:00:20"]
[BlackClock "0:00:49"]

1. d4 {[%clk 0:03:00]}  Nf6 {[%clk 0:02:59]} 2. c4 {[%clk 0:02:59]}  e6 {[%clk 0:02:58]} 3. g3 {[%clk 0:02:59]}  d5 {[%clk 0:02:58]} 4. Bg2 {[%clk 0:02:59]}  Bb4+ {[%clk 0:02:58]} 5. Nd2 {[%clk 0:02:59]}  O-O {[%clk 0:02:57]} 6. Nf3 {[%clk 0:02:55]}  b6 {[%clk 0:02:57]} 7. O-O {[%clk 0:02:54]}  Bb7 {[%clk 0:02:58]} 8. a3 {[%clk 0:02:54]}  Be7 {[%clk 0:02:52]} 9. b4 {[%clk 0:02:54]}  Nbd7 {[%clk 0:02:52]} 10. cxd5 {[%clk 0:02:54]}  exd5 {[%clk 0:02:51]} 11. Bb2 {[%clk 0:02:51]}  c5 {[%clk 0:02:49]} 12. bxc5 {[%clk 0:02:49]}  bxc5 {[%clk 0:02:50]} 13. Ne5 {[%clk 0:02:38]}  Rb8 {[%clk 0:02:47]} 14. Ndf3 {[%clk 0:02:34]}  c4 {[%clk 0:02:45]} 15. Qc2 {[%clk 0:02:26]}  Bd6 {[%clk 0:02:21]} 16. Bc3 {[%clk 0:02:19]}  h6 {[%clk 0:02:18]} 17. Bb4 {[%clk 0:02:18]}  Qe7 {[%clk 0:02:14]} 18. Bxd6 {[%clk 0:02:17]}  Qxd6 {[%clk 0:02:15]} 19. Rfb1 {[%clk 0:02:16]}  Ba8 {[%clk 0:02:11]} 20. Qa4 {[%clk 0:02:13]}  a6 {[%clk 0:02:07]} 21. e3 {[%clk 0:02:07]}  Rfd8 {[%clk 0:01:43]} 22. Rb4 {[%clk 0:01:51]}  Rxb4 {[%clk 0:01:37]} 23. Qxb4 {[%clk 0:01:51]}  Qxb4 {[%clk 0:01:36]} 24. axb4 {[%clk 0:01:52]}  Bb7 {[%clk 0:01:36]} 25. Kf1 {[%clk 0:01:41]}  Nb6 {[%clk 0:01:30]} 26. Ke1 {[%clk 0:01:38]}  Nc8 {[%clk 0:01:28]} 27. Nd2 {[%clk 0:01:33]}  Nd6 {[%clk 0:01:26]} 28. Nb1 {[%clk 0:01:28]}  Nfe4 {[%clk 0:01:17]} 29. f3 {[%clk 0:01:20]}  Nf6 {[%clk 0:01:17]} 30. Nc3 {[%clk 0:01:20]}  Rb8 {[%clk 0:01:18]} 31. Kd2 {[%clk 0:01:16]}  Kf8 {[%clk 0:01:16]} 32. f4 {[%clk 0:01:05]}  Ke7 {[%clk 0:01:12]} 33. Ra5 {[%clk 0:01:04]}  Nfe4+ {[%clk 0:01:02]} 34. Bxe4 {[%clk 0:00:52]}  dxe4 {[%clk 0:01:03]} 35. Rc5 {[%clk 0:00:52]}  Rc8 {[%clk 0:00:59]} 36. Rxc8 {[%clk 0:00:46]}  Bxc8 {[%clk 0:00:59]} 37. Nd5+ {[%clk 0:00:46]}  Kd8 {[%clk 0:00:59]} 38. Nb6 {[%clk 0:00:43]}  Be6 {[%clk 0:00:57]} 39. d5 {[%clk 0:00:38]}  f6 {[%clk 0:00:57]} 40. Nc6+ {[%clk 0:00:23]}  Kc7 {[%clk 0:00:57]} 41. Na8+ {[%clk 0:00:23]}  Kb7 {[%clk 0:00:53]} 42. dxe6 {[%clk 0:00:23]}  Kxc6 {[%clk 0:00:50]} 43. Kc3 {[%clk 0:00:23]}  Kb7 {[%clk 0:00:49]} 44. e7 {[%clk 0:00:20]}  Kxa8 {[%clk 0:00:49]} 0-1


[Site "https://www.chess.com"]

[Event "Titled Tuesday Blitz July 6 2021"]
[White "Cunjalo, Faris"]
[Black "Salem, A.R. Saleh"]
[WhiteFideId "14410710"]
[BlackFideId "9301348"]
[WhiteElo "2234"]
[BlackElo "2642"]
[Result "0-1"]
[Round "10"]
[TimeControl "180+1"]
[Date "2021.07.06"]
[WhiteClock "0:00:01"]
[BlackClock "0:00:39"]

1. c4 {[%clk 0:03:00]}  c5 {[%clk 0:02:59]} 2. Nf3 {[%clk 0:02:56]}  Nf6 {[%clk 0:02:59]} 3. Nc3 {[%clk 0:02:56]}  d5 {[%clk 0:02:59]} 4. cxd5 {[%clk 0:02:55]}  Nxd5 {[%clk 0:03:00]} 5. e3 {[%clk 0:02:53]}  e6 {[%clk 0:02:58]} 6. Bb5+ {[%clk 0:02:47]}  Bd7 {[%clk 0:02:57]} 7. Bc4 {[%clk 0:02:47]}  Nb6 {[%clk 0:02:53]} 8. Be2 {[%clk 0:02:46]}  Nc6 {[%clk 0:02:52]} 9. O-O {[%clk 0:02:44]}  Be7 {[%clk 0:02:52]} 10. b3 {[%clk 0:02:32]}  O-O {[%clk 0:02:52]} 11. Bb2 {[%clk 0:02:32]}  e5 {[%clk 0:02:52]} 12. d3 {[%clk 0:02:30]}  Be6 {[%clk 0:02:50]} 13. Rc1 {[%clk 0:02:27]}  Rc8 {[%clk 0:02:49]} 14. Ne4 {[%clk 0:02:23]}  Nd7 {[%clk 0:02:49]} 15. d4 {[%clk 0:02:06]}  cxd4 {[%clk 0:02:49]} 16. exd4 {[%clk 0:02:07]}  Bd5 {[%clk 0:02:50]} 17. Nc3 {[%clk 0:01:26]}  Bxf3 {[%clk 0:02:49]} 18. Bxf3 {[%clk 0:01:27]}  Nxd4 {[%clk 0:02:36]} 19. Bxb7 {[%clk 0:01:27]}  Rc7 {[%clk 0:02:35]} 20. Ba6 {[%clk 0:01:12]}  Bg5 {[%clk 0:02:28]} 21. Rb1 {[%clk 0:01:12]}  Nc5 {[%clk 0:01:54]} 22. Bc4 {[%clk 0:01:11]}  Rd7 {[%clk 0:01:53]} 23. Qg4 {[%clk 0:01:08]}  Kh8 {[%clk 0:01:49]} 24. Ba3 {[%clk 0:01:04]}  f5 {[%clk 0:01:48]} 25. Qh3 {[%clk 0:00:57]}  Be7 {[%clk 0:01:29]} 26. Rbd1 {[%clk 0:00:43]}  h6 {[%clk 0:01:04]} 27. Rfe1 {[%clk 0:00:33]}  e4 {[%clk 0:01:02]} 28. Kf1 {[%clk 0:00:21]}  Rf6 {[%clk 0:01:00]} 29. Ne2 {[%clk 0:00:17]}  Nc2 {[%clk 0:00:53]} 30. Rxd7 {[%clk 0:00:13]}  Qxd7 {[%clk 0:00:54]} 31. Bxc5 {[%clk 0:00:12]}  Nxe1 {[%clk 0:00:48]} 32. Bxe7 {[%clk 0:00:12]}  Nc2 {[%clk 0:00:45]} 33. Nc3 {[%clk 0:00:02]}  Qxe7 {[%clk 0:00:41]} 34. Qg3 {[%clk 0:00:01]}  f4 {[%clk 0:00:39]} 0-1


[Site "https://www.chess.com"]

[Event "Titled Tuesday Blitz July 6 2021"]
[White "Dovbnia, Nikita"]
[Black "Pham, Le Thao Nguyen"]
[WhiteFideId "54104599"]
[BlackFideId "12401226"]
[WhiteElo "2121"]
[BlackElo "2286"]
[Result "0-1"]
[Round "10"]
[TimeControl "180+1"]
[Date "2021.07.06"]
[WhiteClock "0:00:01"]
[BlackClock "0:00:14"]

1. e4 {[%clk 0:03:00]}  c6 {[%clk 0:02:59]} 2. d4 {[%clk 0:03:00]}  d5 {[%clk 0:03:00]} 3. Nc3 {[%clk 0:03:01]}  dxe4 {[%clk 0:03:00]} 4. Nxe4 {[%clk 0:03:02]}  Nf6 {[%clk 0:03:00]} 5. Nxf6+ {[%clk 0:03:02]}  exf6 {[%clk 0:03:01]} 6. c3 {[%clk 0:03:03]}  Bd6 {[%clk 0:03:02]} 7. Bd3 {[%clk 0:03:03]}  O-O {[%clk 0:03:01]} 8. Ne2 {[%clk 0:03:03]}  Re8 {[%clk 0:03:01]} 9. O-O {[%clk 0:03:02]}  Nd7 {[%clk 0:03:00]} 10. Ng3 {[%clk 0:03:02]}  Nf8 {[%clk 0:03:00]} 11. Qf3 {[%clk 0:03:00]}  Qc7 {[%clk 0:02:58]} 12. Be3 {[%clk 0:02:59]}  Be6 {[%clk 0:02:57]} 13. a3 {[%clk 0:02:50]}  Ng6 {[%clk 0:02:21]} 14. Rad1 {[%clk 0:02:28]}  b5 {[%clk 0:02:00]} 15. Rfe1 {[%clk 0:02:20]}  a6 {[%clk 0:01:57]} 16. Qh5 {[%clk 0:02:18]}  Nf8 {[%clk 0:01:53]} 17. Ne4 {[%clk 0:01:51]}  Bd5 {[%clk 0:01:28]} 18. Nxd6 {[%clk 0:01:41]}  Qxd6 {[%clk 0:01:29]} 19. Rd2 {[%clk 0:01:23]}  Re7 {[%clk 0:01:24]} 20. Rde2 {[%clk 0:01:22]}  Rae8 {[%clk 0:01:23]} 21. Bd2 {[%clk 0:01:20]}  g6 {[%clk 0:01:13]} 22. Rxe7 {[%clk 0:01:07]}  Rxe7 {[%clk 0:01:11]} 23. Rxe7 {[%clk 0:01:06]}  gxh5 {[%clk 0:01:04]} 24. Re3 {[%clk 0:01:01]}  Kg7 {[%clk 0:00:58]} 25. Rg3+ {[%clk 0:00:59]}  Ng6 {[%clk 0:00:58]} 26. f4 {[%clk 0:00:58]}  f5 {[%clk 0:00:37]} 27. Bxf5 {[%clk 0:00:56]}  Be6 {[%clk 0:00:27]} 28. Bd3 {[%clk 0:00:35]}  f5 {[%clk 0:00:26]} 29. Rg5 {[%clk 0:00:29]}  h4 {[%clk 0:00:20]} 30. Bxf5 {[%clk 0:00:26]}  Bxf5 {[%clk 0:00:21]} 31. Rxf5 {[%clk 0:00:26]}  Qe6 {[%clk 0:00:22]} 32. Rc5 {[%clk 0:00:19]}  Qe2 {[%clk 0:00:21]} 33. f5 {[%clk 0:00:14]}  Qd1+ {[%clk 0:00:21]} 34. Kf2 {[%clk 0:00:14]}  Qxd2+ {[%clk 0:00:22]} 35. Kf3 {[%clk 0:00:14]}  Qd3+ {[%clk 0:00:20]} 36. Kg4 {[%clk 0:00:12]}  Qe4+ {[%clk 0:00:19]} 37. Kg5 {[%clk 0:00:09]}  Qxg2+ {[%clk 0:00:15]} 38. Kh5 {[%clk 0:00:08]}  Nf4+ {[%clk 0:00:15]} 39. Kxh4 {[%clk 0:00:07]}  h5 {[%clk 0:00:14]} 40. f6+ {[%clk 0:00:07]}  Kg6 {[%clk 0:00:13]} 41. Rxh5 {[%clk 0:00:01]}  Qxh2+ {[%clk 0:00:13]} 42. Kg4 {[%clk 0:00:01]}  Qxh5+ {[%clk 0:00:13]} 43. Kxf4 {[%clk 0:00:01]}  Qf5+ {[%clk 0:00:14]} 44. Ke3 {[%clk 0:00:01]}  Kxf6 {[%clk 0:00:14]} 0-1


[Site "https://www.chess.com"]

[Event "Titled Tuesday Blitz July 6 2021"]
[White "Garcia Blanco, Omar"]
[Black "Maltsevskaya, Aleksandra"]
[WhiteFideId "2287153"]
[BlackFideId "24174041"]
[WhiteElo "2273"]
[BlackElo "2225"]
[Result "0-1"]
[Round "10"]
[TimeControl "180+1"]
[Date "2021.07.06"]
[WhiteClock "0:00:07"]
[BlackClock "0:00:36"]

1. e4 {[%clk 0:03:00]}  c5 {[%clk 0:02:59]} 2. c3 {[%clk 0:03:00]}  g6 {[%clk 0:02:58]} 3. d4 {[%clk 0:02:59]}  cxd4 {[%clk 0:02:58]} 4. cxd4 {[%clk 0:03:00]}  d5 {[%clk 0:02:57]} 5. exd5 {[%clk 0:03:01]}  Nf6 {[%clk 0:02:57]} 6. Nc3 {[%clk 0:03:01]}  Bg7 {[%clk 0:02:57]} 7. Bb5+ {[%clk 0:03:00]}  Nbd7 {[%clk 0:02:57]} 8. d6 {[%clk 0:03:00]}  O-O {[%clk 0:02:54]} 9. dxe7 {[%clk 0:03:00]}  Qxe7+ {[%clk 0:02:54]} 10. Nge2 {[%clk 0:03:00]}  a6 {[%clk 0:02:53]} 11. Bd3 {[%clk 0:02:59]}  b5 {[%clk 0:02:52]} 12. O-O {[%clk 0:02:59]}  b4 {[%clk 0:02:52]} 13. Na4 {[%clk 0:02:58]}  Bb7 {[%clk 0:02:52]} 14. Nf4 {[%clk 0:02:44]}  Rad8 {[%clk 0:02:48]} 15. Qe2 {[%clk 0:02:35]}  Qd6 {[%clk 0:02:46]} 16. a3 {[%clk 0:02:24]}  Rfe8 {[%clk 0:02:39]} 17. Be3 {[%clk 0:02:15]}  Nd5 {[%clk 0:02:23]} 18. Nxd5 {[%clk 0:02:14]}  Qxd5 {[%clk 0:02:24]} 19. Qg4 {[%clk 0:02:01]}  Nf6 {[%clk 0:02:20]} 20. Qh3 {[%clk 0:01:51]}  bxa3 {[%clk 0:02:04]} 21. Rxa3 {[%clk 0:01:52]}  h5 {[%clk 0:02:03]} 22. Nc5 {[%clk 0:01:45]}  Bc8 {[%clk 0:01:58]} 23. Qg3 {[%clk 0:01:41]}  Ng4 {[%clk 0:01:57]} 24. Bxa6 {[%clk 0:01:29]}  Bxd4 {[%clk 0:01:45]} 25. Bxd4 {[%clk 0:01:26]}  Qxd4 {[%clk 0:01:46]} 26. Bxc8 {[%clk 0:01:25]}  Rxc8 {[%clk 0:01:47]} 27. Nb7 {[%clk 0:01:10]}  Rc2 {[%clk 0:01:35]} 28. Rf3 {[%clk 0:00:54]}  Rxb2 {[%clk 0:01:16]} 29. Nd6 {[%clk 0:00:49]}  Reb8 {[%clk 0:01:04]} 30. h3 {[%clk 0:00:37]}  Rb1 {[%clk 0:00:35]} 31. hxg4 {[%clk 0:00:09]}  Rxf1+ {[%clk 0:00:35]} 32. Kh2 {[%clk 0:00:09]}  Rbb1 {[%clk 0:00:35]} 33. Qf4 {[%clk 0:00:06]}  Rh1+ {[%clk 0:00:35]} 34. Kg3 {[%clk 0:00:07]}  h4# {[%clk 0:00:36]} 0-1


[Site "https://www.chess.com"]

[Event "Titled Tuesday Blitz July 6 2021"]
[White "Gedajlovic, Max"]
[Black "Koridze, Lile"]
[WhiteFideId "2616840"]
[BlackFideId "13612514"]
[WhiteElo "2137"]
[BlackElo "1978"]
[Result "0-1"]
[Round "10"]
[TimeControl "180+1"]
[Date "2021.07.06"]
[WhiteClock "0:00:03"]
[BlackClock "0:00:18"]

1. d4 {[%clk 0:03:00]}  Nf6 {[%clk 0:02:59]} 2. Nf3 {[%clk 0:02:55]}  d5 {[%clk 0:02:59]} 3. e3 {[%clk 0:02:55]}  c6 {[%clk 0:02:59]} 4. c4 {[%clk 0:02:53]}  Bg4 {[%clk 0:03:00]} 5. h3 {[%clk 0:02:50]}  Bh5 {[%clk 0:02:59]} 6. Nc3 {[%clk 0:02:49]}  e6 {[%clk 0:03:00]} 7. g4 {[%clk 0:02:48]}  Bg6 {[%clk 0:02:59]} 8. Ne5 {[%clk 0:02:49]}  Be4 {[%clk 0:02:55]} 9. f3 {[%clk 0:02:43]}  Bg6 {[%clk 0:02:53]} 10. g5 {[%clk 0:02:40]}  Nh5 {[%clk 0:02:43]} 11. Nxg6 {[%clk 0:02:34]}  hxg6 {[%clk 0:02:38]} 12. cxd5 {[%clk 0:02:26]}  Qxg5 {[%clk 0:02:35]} 13. dxe6 {[%clk 0:02:25]}  Qh4+ {[%clk 0:02:35]} 14. Kd2 {[%clk 0:02:24]}  fxe6 {[%clk 0:02:32]} 15. Qb3 {[%clk 0:02:20]}  Qf6 {[%clk 0:02:12]} 16. Qxb7 {[%clk 0:02:10]}  Qxf3 {[%clk 0:02:06]} 17. Qxa8 {[%clk 0:02:08]}  Qxh1 {[%clk 0:02:05]} 18. Qxb8+ {[%clk 0:02:09]}  Kf7 {[%clk 0:02:06]} 19. Qc7+ {[%clk 0:01:44]}  Be7 {[%clk 0:02:05]} 20. Bc4 {[%clk 0:01:41]}  Ng3 {[%clk 0:01:58]} 21. Qf4+ {[%clk 0:01:39]}  Nf5 {[%clk 0:01:55]} 22. e4 {[%clk 0:01:27]}  Qg2+ {[%clk 0:01:38]} 23. Kd1 {[%clk 0:01:23]}  Rxh3 {[%clk 0:01:36]} 24. Bd2 {[%clk 0:01:20]}  Rh1+ {[%clk 0:01:29]} 25. Be1 {[%clk 0:01:19]}  Bh4 {[%clk 0:01:26]} 26. Bxe6+ {[%clk 0:00:57]}  Kxe6 {[%clk 0:01:12]} 27. exf5+ {[%clk 0:00:57]}  Kd7 {[%clk 0:01:08]} 28. Qxh4 {[%clk 0:00:51]}  Rxh4 {[%clk 0:01:05]} 29. Bxh4 {[%clk 0:00:51]}  Qg4+ {[%clk 0:01:01]} 30. Kc2 {[%clk 0:00:51]}  Qxh4 {[%clk 0:01:01]} 31. fxg6 {[%clk 0:00:50]}  Qg5 {[%clk 0:00:56]} 32. Re1 {[%clk 0:00:46]}  Qxg6+ {[%clk 0:00:55]} 33. Kb3 {[%clk 0:00:44]}  Qd3 {[%clk 0:00:54]} 34. Rd1 {[%clk 0:00:27]}  Qf3 {[%clk 0:00:54]} 35. d5 {[%clk 0:00:27]}  cxd5 {[%clk 0:00:50]} 36. Rxd5+ {[%clk 0:00:26]}  Kc6 {[%clk 0:00:49]} 37. Ra5 {[%clk 0:00:24]}  Kb6 {[%clk 0:00:48]} 38. Rb5+ {[%clk 0:00:24]}  Kc7 {[%clk 0:00:43]} 39. Rc5+ {[%clk 0:00:23]}  Kd6 {[%clk 0:00:42]} 40. Kb4 {[%clk 0:00:19]}  g5 {[%clk 0:00:32]} 41. Nb5+ {[%clk 0:00:16]}  Kd7 {[%clk 0:00:28]} 42. Rc7+ {[%clk 0:00:15]}  Kd8 {[%clk 0:00:28]} 43. Rxa7 {[%clk 0:00:11]}  g4 {[%clk 0:00:28]} 44. Nd4 {[%clk 0:00:09]}  Qe4 {[%clk 0:00:25]} 45. Kc5 {[%clk 0:00:08]}  Qe5+ {[%clk 0:00:24]} 46. Kc4 {[%clk 0:00:07]}  Qe4 {[%clk 0:00:23]} 47. Rg7 {[%clk 0:00:05]}  Ke8 {[%clk 0:00:20]} 48. Kc5 {[%clk 0:00:04]}  Qe5+ {[%clk 0:00:20]} 49. Kc4 {[%clk 0:00:03]}  Qxg7 {[%clk 0:00:20]} 50. Nf5 {[%clk 0:00:03]}  Qf7+ {[%clk 0:00:18]} 0-1


[Site "https://www.chess.com"]

[Event "Titled Tuesday Blitz July 6 2021"]
[White "Grebeniuk, Semen"]
[Black "Borisova, Ekaterina"]
[WhiteFideId "14117509"]
[BlackFideId "34124184"]
[WhiteElo "2232"]
[BlackElo "2021"]
[Result "0-1"]
[Round "10"]
[TimeControl "180+1"]
[Date "2021.07.06"]
[WhiteClock "0:00:04"]
[BlackClock "0:00:24"]

1. d4 {[%clk 0:03:00]}  Nf6 {[%clk 0:02:59]} 2. Nf3 {[%clk 0:03:01]}  e6 {[%clk 0:02:55]} 3. Bg5 {[%clk 0:03:01]}  h6 {[%clk 0:02:54]} 4. Bh4 {[%clk 0:03:01]}  c5 {[%clk 0:02:53]} 5. e3 {[%clk 0:02:59]}  b6 {[%clk 0:02:53]} 6. Bd3 {[%clk 0:02:52]}  Bb7 {[%clk 0:02:53]} 7. O-O {[%clk 0:02:51]}  g5 {[%clk 0:02:53]} 8. Bg3 {[%clk 0:02:51]}  g4 {[%clk 0:02:53]} 9. Nfd2 {[%clk 0:02:43]}  h5 {[%clk 0:02:52]} 10. Bh4 {[%clk 0:02:15]}  Be7 {[%clk 0:02:50]} 11. c4 {[%clk 0:02:14]}  d6 {[%clk 0:02:50]} 12. Nc3 {[%clk 0:02:15]}  Nbd7 {[%clk 0:02:50]} 13. Qe2 {[%clk 0:02:01]}  Rg8 {[%clk 0:02:41]} 14. Rad1 {[%clk 0:01:59]}  a6 {[%clk 0:02:41]} 15. dxc5 {[%clk 0:01:48]}  bxc5 {[%clk 0:02:39]} 16. Bc2 {[%clk 0:01:42]}  Qc7 {[%clk 0:02:38]} 17. Ba4 {[%clk 0:01:27]}  Kf8 {[%clk 0:02:37]} 18. e4 {[%clk 0:01:24]}  Ne5 {[%clk 0:02:34]} 19. Qe3 {[%clk 0:01:17]}  Rg6 {[%clk 0:02:29]} 20. Bg3 {[%clk 0:01:11]}  Nfd7 {[%clk 0:02:17]} 21. Bxd7 {[%clk 0:00:58]}  Nxd7 {[%clk 0:02:06]} 22. e5 {[%clk 0:00:33]}  dxe5 {[%clk 0:01:50]} 23. Rfe1 {[%clk 0:00:33]}  Bg5 {[%clk 0:01:45]} 24. Bxe5 {[%clk 0:00:29]}  Bxe3 {[%clk 0:01:20]} 25. Bxc7 {[%clk 0:00:29]}  Bd4 {[%clk 0:01:20]} 26. Nb3 {[%clk 0:00:26]}  e5 {[%clk 0:01:20]} 27. Ne4 {[%clk 0:00:20]}  Bxe4 {[%clk 0:01:16]} 28. Rxe4 {[%clk 0:00:20]}  f5 {[%clk 0:01:17]} 29. Re2 {[%clk 0:00:20]}  Rc6 {[%clk 0:01:16]} 30. Ba5 {[%clk 0:00:20]}  Kf7 {[%clk 0:01:13]} 31. Be1 {[%clk 0:00:15]}  h4 {[%clk 0:01:11]} 32. Kf1 {[%clk 0:00:15]}  Rg8 {[%clk 0:01:11]} 33. Nc1 {[%clk 0:00:15]}  Re6 {[%clk 0:01:06]} 34. Nb3 {[%clk 0:00:15]}  f4 {[%clk 0:01:03]} 35. Bc3 {[%clk 0:00:13]}  f3 {[%clk 0:01:01]} 36. Re4 {[%clk 0:00:13]}  Rf6 {[%clk 0:00:54]} 37. g3 {[%clk 0:00:10]}  hxg3 {[%clk 0:00:54]} 38. hxg3 {[%clk 0:00:09]}  Rh8 {[%clk 0:00:53]} 39. Ke1 {[%clk 0:00:10]}  Rh1+ {[%clk 0:00:50]} 40. Kd2 {[%clk 0:00:10]}  Rxd1+ {[%clk 0:00:50]} 41. Kxd1 {[%clk 0:00:11]}  Bxf2 {[%clk 0:00:48]} 42. Rxg4 {[%clk 0:00:11]}  Bd4 {[%clk 0:00:47]} 43. Nd2 {[%clk 0:00:12]}  f2 {[%clk 0:00:44]} 44. Nf1 {[%clk 0:00:12]}  Nb6 {[%clk 0:00:36]} 45. Bxd4 {[%clk 0:00:10]}  cxd4 {[%clk 0:00:35]} 46. b3 {[%clk 0:00:11]}  Nd7 {[%clk 0:00:35]} 47. Ke2 {[%clk 0:00:11]}  Nc5 {[%clk 0:00:35]} 48. Rg5 {[%clk 0:00:06]}  Ke6 {[%clk 0:00:33]} 49. Nd2 {[%clk 0:00:04]}  a5 {[%clk 0:00:31]} 50. Rh5 {[%clk 0:00:04]}  d3+ {[%clk 0:00:29]} 51. Kf1 {[%clk 0:00:04]}  e4 {[%clk 0:00:24]} 0-1


[Site "https://www.chess.com"]

[Event "Titled Tuesday Blitz July 6 2021"]
[White "Gunina, Valentina"]
[Black "Solon, Nathan"]
[WhiteFideId "4167570"]
[BlackFideId "2017229"]
[WhiteElo "2399"]
[BlackElo "2641"]
[Result "1-0"]
[Round "10"]
[TimeControl "180+1"]
[Date "2021.07.06"]
[WhiteClock "0:01:50"]
[BlackClock "0:00:43"]

1. d4 {[%clk 0:03:00]}  Nf6 {[%clk 0:02:59]} 2. c4 {[%clk 0:03:00]}  e6 {[%clk 0:02:59]} 3. Nf3 {[%clk 0:03:01]}  d5 {[%clk 0:02:59]} 4. Nc3 {[%clk 0:03:00]}  dxc4 {[%clk 0:02:59]} 5. e4 {[%clk 0:03:00]}  b5 {[%clk 0:02:59]} 6. e5 {[%clk 0:03:00]}  Nd5 {[%clk 0:03:00]} 7. Nxb5 {[%clk 0:03:01]}  Nb6 {[%clk 0:03:00]} 8. h4 {[%clk 0:03:00]}  Nc6 {[%clk 0:02:59]} 9. Be2 {[%clk 0:03:00]}  Be7 {[%clk 0:02:57]} 10. h5 {[%clk 0:03:00]}  h6 {[%clk 0:02:56]} 11. Rh3 {[%clk 0:02:57]}  Ba6 {[%clk 0:02:49]} 12. Nc3 {[%clk 0:02:57]}  Nb4 {[%clk 0:02:49]} 13. Kf1 {[%clk 0:02:56]}  Nd3 {[%clk 0:02:43]} 14. b3 {[%clk 0:02:54]}  O-O {[%clk 0:02:30]} 15. bxc4 {[%clk 0:02:52]}  Nxc1 {[%clk 0:02:30]} 16. Rxc1 {[%clk 0:02:50]}  Bxc4 {[%clk 0:02:28]} 17. Rg3 {[%clk 0:02:38]}  Bxe2+ {[%clk 0:02:14]} 18. Nxe2 {[%clk 0:02:37]}  c5 {[%clk 0:02:03]} 19. Qd2 {[%clk 0:02:34]}  Kh8 {[%clk 0:02:02]} 20. dxc5 {[%clk 0:02:34]}  Qxd2 {[%clk 0:01:59]} 21. Nxd2 {[%clk 0:02:34]}  Nd7 {[%clk 0:01:57]} 22. c6 {[%clk 0:02:22]}  Nxe5 {[%clk 0:01:49]} 23. f4 {[%clk 0:02:22]}  Bb4 {[%clk 0:01:48]} 24. Nb3 {[%clk 0:02:15]}  Nxc6 {[%clk 0:01:29]} 25. Rxc6 {[%clk 0:02:14]}  a5 {[%clk 0:01:29]} 26. a4 {[%clk 0:02:12]}  Rac8 {[%clk 0:01:24]} 27. Rxc8 {[%clk 0:02:09]}  Rxc8 {[%clk 0:01:25]} 28. Rd3 {[%clk 0:02:09]}  Rc2 {[%clk 0:01:17]} 29. Nbd4 {[%clk 0:02:00]}  Ra2 {[%clk 0:01:13]} 30. Nc6 {[%clk 0:02:00]}  Ra1+ {[%clk 0:01:09]} 31. Kf2 {[%clk 0:02:00]}  Be1+ {[%clk 0:01:09]} 32. Kf3 {[%clk 0:01:59]}  Rxa4 {[%clk 0:01:09]} 33. Ne5 {[%clk 0:01:57]}  Bh4 {[%clk 0:00:57]} 34. Nxf7+ {[%clk 0:01:56]}  Kg8 {[%clk 0:00:57]} 35. Ne5 {[%clk 0:01:56]}  Rb4 {[%clk 0:00:53]} 36. Ra3 {[%clk 0:01:53]}  a4 {[%clk 0:00:47]} 37. Nd3 {[%clk 0:01:52]}  Rb3 {[%clk 0:00:46]} 38. Rxb3 {[%clk 0:01:50]}  axb3 {[%clk 0:00:47]} 39. Nd4 {[%clk 0:01:50]}  b2 {[%clk 0:00:45]} 40. Nxb2 {[%clk 0:01:50]}  Bf6 {[%clk 0:00:45]} 41. Ke4 {[%clk 0:01:50]}  Kf7 {[%clk 0:00:43]} 42. Nc4 {[%clk 0:01:50]} 1-0


[Site "https://www.chess.com"]